Cogmind - Beta 16 @@@ ROGUE MODE // 2026.01.18 @ 13:55:02 Player: ae Result: Destroyed self with Grenade Launcher Performance ------------- Evolutions (0) 0 Regions Visited (2) 400 Robots Destroyed (25) 125 Value Destroyed (760) 760 Prototype IDs (0) 0 Alien Tech Used (0) 0 Bonus (0) 0 TOTAL SCORE: 1285 Bonus ------- None Cogmind --------- Core Integrity 0/250 Matter 19/300 Energy 250/250 System Corruption 0% Temperature Cool (0) Movement Rolling (95) Ox1 Location -10/Subcaves Parts ------- > --- POWER (1) -------- Ion Engine > --- PROPULSION (2) --- Light Treads Wheel > --- UTILITY (2) ------ Makeshift Light Armor Plating > --- WEAPON (2) ------- Grenade Launcher Subdweller Shrapnel Launcher > --- INVENTORY (5) ---- Subdweller Monowheel Disposable Heat Sink Subdweller Optics Subdweller Shrapnel Launcher Peak State ------------ > --- POWER ------------ Ion Engine > --- PROPULSION ------- Light Treads Wheel > --- UTILITY ---------- Scrap Shield > --- WEAPON ----------- Subdweller Shrapnel Launcher Enhanced Flamer > --- INVENTORY -------- Subdweller Monowheel Disposable Heat Sink EM Pulse Gun Grenade Launcher Scrap Shield Fragment [Rating: 12] Favorites ----------- Power Ion Engine Engine Ion Engine Propulsion Light Treads Treads Light Treads Wheel Wheel Utility Scrap Shield Device Seismic Detector Storage Small Storage Unit Processor Signal Interpreter Protection Scrap Shield Weapon EM Pulse Gun Energy Gun EM Pulse Gun Launcher Subdweller Shrapnel Launcher Special Weapon Enhanced Flamer Build | -11 -10 -10 ------- Run | Yrd Mat Sub Slots Evolved . | . . . Power . | . . . Propulsion . | . . . Utility . | . . . Weapon . | . . . Parts Attached 22 | 7 6 9 Power 2 | 1 . 1 Engine 2 | 1 . 1 Core . | . . . Reactor . | . . . Propulsion 6 | 2 2 2 Treads 5 | 2 2 1 Leg . | . . . Wheel 1 | . . 1 Hover . | . . . Flight . | . . . Utility 6 | 2 2 2 Device 2 | 1 1 . Storage 1 | 1 . . Processor 1 | . 1 . Hackware . | . . . Protection 2 | . . 2 Artifact . | . . . Weapon 8 | 2 2 4 Energy Gun 3 | 2 1 . Energy Cannon . | . . . Ballistic Gun . | . . . Ballistic Cannon . | . . . Launcher 3 | . . 3 Special Weapon 2 | . 1 1 Impact Weapon . | . . . Slashing Weapon . | . . . Piercing Weapon . | . . . Special Melee Weapon . | . . . Unidentified Prototypes . | . . . Parts Lost 4 | . . 4 Power 1 | . . 1 Propulsion . | . . . Utility 1 | . . 1 Weapon 2 | . . 2 Highest Loss Streak 3 | . . 3 To Critical Strikes . | . . . Average Backups 5 | 5 7 4 Power . | . 1 . Propulsion 1 | 2 3 1 Utility . | . . 1 Weapon 1 | 1 2 1 Tool/Special . | . . . Unused Backups 7 | . 2 5 Power . | . . . Propulsion 4 | . 2 2 Utility 3 | . . 3 Weapon . | . . . Tool/Special . | . . . Average Slot Usage (%) 90 | . 100 86 Engine 14 | . 14 14 Treads 19 | . 28 16 Wheel 8 | . . 11 Device 2 | . 8 . Storage 5 | . 14 2 Processor 3 | . 5 2 Protection 8 | . . 11 Energy Gun 17 | . 26 14 Launcher 6 | . . 8 Special Weapon 3 | . 1 5 Peak Build Rating 12 | 7 7 12 Average Rating 8 | 4 6 9 On Entrance 4 | . 7 7 Avg Prop Armor Cover (%) 4 | . . 4 Naked Turns . | . . . Heaviest Build 39 | 15 15 39 Greatest Support 40 | 40 40 40 Greatest Overweight (x) 3 | . . 3 Average Overweight (x) 1 | . . 2 Largest Inventory Capacity 8 | 8 8 8 Average Capacity 6 | 7 8 5 Most Carried 8 | 8 8 8 Average Carried 6 | 5 7 5 Final Capacity 8 | 8 8 5 Final Carried 8 | 7 8 4 Class Distribution -------------------- 83% | Mutant 16% | Subdweller-Mutant Dominant Class ---------------- Mutant | -10/Materials Mutant | -10/Subcaves Resources | -11 -10 -10 ----------- Run | Yrd Mat Sub Matter Collected 569 | 270 30 269 Remotely 10 | 10 . . Salvage Created 858 | 125 375 358 Parts 45 | 9 15 21 Haulers Intercepted 2 | . 2 . Recyclers Shooed 1 | 1 . . Parts Field Recycled . | . . . Retrieved Matter . | . . . Parts Self-Destructed 8 | . . 8 Prevented . | . . . Parts Restored . | . . . Kills | -11 -10 -10 ------- Run | Yrd Mat Sub Combat Hostiles Destroyed 18 | . 4 14 Guns 7 | . 4 3 AOE 11 | . . 11 Classes Destroyed 8 | 2 4 2 Worker 1 | . 1 . Tunneler 2 | 2 . . Hauler 2 | . 2 . Recycler 1 | 1 . . Watcher 1 | . 1 . Grunt 4 | . 4 . Cobbler 1 | . . 1 Subdweller 14 | . . 14 Best Kill Streak 4 | 3 2 4 Combat Bots Only 4 | . 2 4 Max Kills in Single Turn 2 | 2 1 2 Gunslinging . | . . . Exploded 2 | . . 2 Melee . | . . . Uniques/NPCs Destroyed . | . . . Combat | -11 -10 -10 -------- Run | Yrd Mat Sub Hostile Shots Fired 65 | . 20 45 Missed 18 | . 3 15 Hits 47 | . 17 30 Projectile 47 | . 17 30 AOE 4 | . . 4 Damage Taken 1253 | . 227 1026 Core 255 | . 60 195 Absorbed by Shields . | . . . Core Remaining (%) 100 | 100 . . Volleys Fired 69 | 7 33 29 Largest 2 | 2 2 2 Hottest 140 | 80 100 140 Shots Fired 126 | 14 61 51 Gun 92 | 14 56 22 Cannon . | . . . Launcher 25 | . . 25 Special 9 | . 5 4 Kinetic 15 | . . 15 Thermal 20 | . 5 15 Explosive 10 | . . 10 Electromagnetic 81 | 14 56 11 Robot Hit Streak 17 | 2 8 17 Robot Miss Streak 3 | 3 3 2 Penetration Max . | . . . Secondary Targets . | . . . Shots Hit Robots 74 | 4 37 33 Core Hits 47 | 4 12 31 Critical Kills . | . . . Critical Parts Destroyed . | . . . Critical Strikes 1 | . 1 . Corrupt 1 | . 1 . Melee Attacks . | . . . Impact . | . . . Slashing . | . . . Piercing . | . . . Sneak Attacks . | . . . Combat Hostiles . | . . . Follow-up Attacks . | . . . Damage Inflicted 2454 | 66 552 1836 Guns 772 | 66 508 198 Cannons . | . . . Explosions 1647 | . 44 1603 Melee . | . . . Ramming . | . . . Kinetic 820 | . . 820 Thermal 171 | . 44 127 Explosive 783 | . . 783 Electromagnetic 680 | 66 508 106 Impact . | . . . Slashing . | . . . Piercing . | . . . Highest Corruption . | . . . Average Corruption . | . . . Corruption Purged . | . . . Corruption Blocked . | . . . Overload Shots . | . . . Overflow Damage . | . . . Projectiles . | . . . Explosions . | . . . Melee . | . . . Knockbacks . | . . . Impact . | . . . Kinetic . | . . . Secondary . | . . . Self-Inflicted Damage 140 | . . 140 Shots 6 | . . 6 Rammed . | . . . Targets Rammed . | . . . Kicked . | . . . Crushed . | . . . Highest Temperature 138 | 72 138 6 Average Temperature 43 | 34 46 3 Received Heat Transfer 255 | . 114 141 Siege Activations . | . . . Martial Activations . | . . . Shielding Activations . | . . . Robots Disrupted . | . . . Combat Hostiles . | . . . Robots Corrupted 1 | . 1 . Combat Hostiles . | . . . Parts Fried 1 | . 1 . Impact Corruptions . | . . . Robots Melted . | . . . Combat Hostiles . | . . . Parts Melted 1 | . . 1 Heat Transferred 380 | . 50 330 Parts Sabotaged . | . . . Parts Stolen . | . . . Parts Stripped . | . . . Power Chain Reactions 1 | . 1 . Alert | -11 -10 -10 ------- Run | Yrd Mat Sub Maximum Alert Level . | . . . Low Security (%) 100 | 100 100 . Level 1 . | . . . Level 2 . | . . . Level 3 . | . . . Level 4 . | . . . Level 5 . | . . . High Security . | . . . Max Security . | . . . Peak Influence 44 | 15 44 . Initial 3 | . 3 . Average 10 | 1 13 . Influence Increases 167 | 15 152 . Destroy 0b10 Robot/C 80 | . 80 . Destroy 0b10 Robot/NC 35 | 15 20 . Destroy Leader 16 | . 16 . Successful Hack 18 | . 18 . Disable Machine 15 | . 15 . Destroy Structure 3 | . 3 . Influence Decreases 167 | 10 142 15 Entered New Map 10 | . 2 8 Time Decay 157 | 10 140 7 Squads Dispatched 1 | . 1 . Investigation . | . . . Extermination . | . . . Reinforcement 1 | . 1 . Assault . | . . . Garrison . | . . . Intercept . | . . . Searches Triggered . | . . . Construction Impeded . | . . . Haulers Reinforced . | . . . Active Scanning Responses . | . . . Cargo Convoy Interrupts . | . . . Stealth | -11 -10 -10 --------- Run | Yrd Mat Sub Distress Signals 2 | . 2 . Communications Jammed . | . . . Distress Signals . | . . . Times Spotted 22 | . 7 15 Peak Tracking Total 4 | . 2 4 Tactical Retreats . | . . . Traps | -11 -10 -10 ------- Run | Yrd Mat Sub Traps Triggered 2 | . 1 1 Indirectly . | . . . Trap Hack Attempts . | . . . Triggered . | . . . Disarmed . | . . . Reprogrammed . | . . . Reused . | . . . Traps Extracted . | . . . Installed . | . . . Triggered . | . . . Machines | -11 -10 -10 ---------- Run | Yrd Mat Sub Machines Disabled 1 | . 1 . Max in Single Turn 1 | . 1 . Machines Repaired . | . . . Machines Dismantled . | . . . Machines Sabotaged . | . . . Overloaded Fab Kills . | . . . Hacking | -11 -10 -10 --------- Run | Yrd Mat Sub Machines Accessed 2 | . 2 . Terminals 2 | . 2 . Fabricators . | . . . Repair Stations . | . . . Recycling Units . | . . . Scanalyzers . | . . . Garrison Access . | . . . Total Hacks 5 | . 5 . Successful 3 | . 3 . Failed 2 | . 2 . Catastrophic . | . . . Database Lockouts . | . . . Manual 3 | . 3 . Terminals 5 | . 5 . Fabricators . | . . . Repair Stations . | . . . Recycling Units . | . . . Scanalyzers . | . . . Garrison Access . | . . . Terminal Hacks 1 | . 1 . Zone Layout 1 | . 1 . Fabricator Hacks . | . . . Repair Station Hacks . | . . . Recycling Unit Hacks . | . . . Scanalyzer . | . . . Garrison Access Hacks . | . . . Unauthorized Hacks 2 | . 2 . Terminals 2 | . 2 . Botnet 2 | . 2 . Fabricators . | . . . Repair Stations . | . . . Recycling Units . | . . . Scanalyzers . | . . . Garrison Access . | . . . Data Cores Recovered . | . . . Used . | . . . Hacking Detections 2 | . 2 . Full Trace Events . | . . . Feedback Events . | . . . Feedback Blocked . | . . . Robot Schematics Acquired . | . . . Robots Built . | . . . Authchips . | . . . Time . | . . . Total Robot Build Rating . | . . . Part Schematics Acquired . | . . . Parts Built . | . . . Authchips . | . . . Time . | . . . Total Part Build Rating . | . . . Part Studies Acquired . | . . . Parts Repaired . | . . . Time . | . . . Parts Recycled . | . . . Recycled Matter . | . . . Retrieved Matter . | . . . Retrieved Components . | . . . Parts Scanalyzed . | . . . Part Schematics Acquired . | . . . Parts Damaged . | . . . Bothacking | -11 -10 -10 ------------ Run | Yrd Mat Sub Used RIF Installer . | . . . Robots Hacked . | . . . Non-combat . | . . . Combat . | . . . Robot Hacks Applied . | . . . Relay Couplers Released . | . . . Fabnet Peak Effective % . | . . . Robots Rewired . | . . . Allies Hacked . | . . . Hacks Repelled . | . . . Allies | -11 -10 -10 -------- Run | Yrd Mat Sub Total Allies . | . . . Largest Group . | . . . Highest-Rated Group . | . . . Highest-Rated Ally . | . . . Total Orders . | . . . Ally Attacks . | . . . Total Damage . | . . . Kills . | . . . Allies Corrupted . | . . . Allies Melted . | . . . Intel | -11 -10 -10 ------- Run | Yrd Mat Sub Active Infowar (turns) 234 | . 234 . Seismic 234 | . 234 . Robot Analysis Total . | . . . Derelict Logs Recovered 2 | . . 2 Drone Launches . | . . . Drone Recoveries . | . . . Exploration | -11 -10 -10 ------------- Run | Yrd Mat Sub Turns Passed 1712 | 117 447 1148 Spaces Moved 1064 | 50 185 829 Core 2 | 2 . . Treads 308 | 48 185 75 Legs . | . . . Wheels 754 | . . 754 Hover . | . . . Flight . | . . . Fastest Speed 50 | 50 160 95 Average Speed 127 | 155 160 119 Slowest Speed 160 | 160 160 160 Overloaded Moves . | . . . Propulsion Burnouts . | . . . Robots Hopped . | . . . Potential Cave-ins . | . . . Cave-ins Triggered . | . . . Exploration Rate (%) 29 | 4 26 59 Regions Visited 2 Branch Regions 1 Pre-discovered Areas 1 | . . 1 Known Exits Taken 1 | . 1 . Unknown Exits Taken 1 | 1 . . Scrap Searched 4 | . . 4 Spaces Dug 4 | . 4 . Terrain Destroyed 144 | . 4 140 Melee . | . . . Projectile 4 | . 4 . AOE 140 | . . 140 Terrain Rammed . | . . . Walls Destroyed . | . . . Machines Disabled . | . . . Actions | -11 -10 -10 --------- Run | Yrd Mat Sub Total 1283 | 73 268 942 Wait 70 | . 35 35 Move 1062 | 49 184 829 Hop . | . . . Pick Up 26 | 10 3 13 Fast Attach 9 | 4 2 3 Attach 7 | 3 . 4 Detach 2 | . 1 1 Swap 11 | . 4 7 Drop 21 | . 6 15 Fire 69 | 7 33 29 Melee . | . . . Ram . | . . . Kick . | . . . Crush . | . . . Escape Stasis . | . . . Rewire 1 | . . 1 Trap . | . . . Miscellaneous 5 | . . 5 Route ------- -11/Scrapyard -10/Materials -10/Subcaves History --------- Turn | Location | Event 10 | -11/Scrapyard | Discovered new exit (range 15) 118 | -11/Scrapyard | Entered Materials 324 | -10/Materials | Build established: Mutant 531 | -10/Materials | Discovered new exit (range 2) 535 | -10/Materials | Identified exit to Subcaves 565 | -10/Materials | Entered Subcaves 674 | -10/Subcaves | Disturbed a concealed Subdweller 683 | -10/Subcaves | Disturbed a concealed Subdweller 685 | -10/Subcaves | Disturbed a concealed Subdweller 706 | -10/Subcaves | Lost 3 parts (1p2w) 712 | -10/Subcaves | Disturbed a concealed Subdweller 788 | -10/Subcaves | Core integrity fell below 50% 1100 | -10/Subcaves | Learned location of 1 exit from Materials 1374 | -10/Subcaves | Learned location of Zion (-7) 1374 | -10/Subcaves | Met a Zionite searching for "candidates" 1466 | -10/Subcaves | A swath of the cavern ceiling suddenly collapsed 1604 | -10/Subcaves | Learned Materials machine intel 1685 | -10/Subcaves | Ambushed by Subdweller buried in earth 1692 | -10/Subcaves | Ambushed by Subdweller buried in earth 1696 | -10/Subcaves | Core integrity fell below 20% 1713 | -10/Subcaves | Destroyed self with Grenade Launcher Last Messages --------------- Shield (+24). 01657_ Dropped Scrap Shield Fragment. 01658_ Scrap Shield Fragment affixed to Scrap Shield (+47). 01660_ Acquired 28 matter. 01663_ Acquired Sub. Optics. [Achievement: Do Not Disturb] 01686_ I9-P4A(R): "GOODGOOD!" 01688_ Sub. Shrapnel Launcher shoots sparks and powers down. 01693_ J2-7ZG(R): "NOSTUCKSUB!" 01695_ BR-0Q7(R) destroyed. 01695_ J2-7ZG(R) destroyed. 01697_ Scrap Shield destroyed. 01698_ I9-P4A(R) destroyed. 01702_ QE-7AL(R) affixes Scrap Shield Fragment to Scrap Shield. 01708_ Acquired 17 matter. 01711_ Acquired 10 matter. 01713_ QE-7AL(R) destroyed. Map ----- +----------------------------------------------------+ | ???????????????????????????## # ### # | | ????????????????????????????# ##???? | | ????????????????????????????# #????? | | ???????????????????????????### #### #????? | | ???????????????????????????#"" ###### #????? | | ???????????????????????????## #?## ##????? | | ???????????????????????????# #??#####?????? | | ???????????????????# ??????# #????????????? | | ??????????????????## ???### #????????????? | | ?????????????????## ??# #????????????? | | ?????????????????? ??# " "####?????????? | | ???????????????????# ### #?????????? | | ???????????????????# #?????????? | | ???????????????????## ##????????? | | ??????????????????#### ##???????? | | ??????????????????# ; ##??????? | | ????????????????### ##?????? | | ???????????????## ##????? | | ??????????????## #????? | | ??????????????# ###????? | | ??????????????# ##??????? | | ??????????????# ##??????? | | ??????????????# ##?????? | | ??????????????# % ; ###""?? | | ??????????????#" & ##"" """"?? | | ??????????????#" #@&" #"""### """""?? | | ??????????? """ # ####" #?# ##"#"##?? | | ???????????? #" ""?# " "#?# #?# ##?##?#??? | | ????????????? ??# "" #?# #?# #???????? | | ????????????? ? ??## "##? #?# ##???????? | | ?????????????? # ????# #??# #?## #????????? | | ?????????????? #????? #??# ???# #????????? | | ?????????????? ??????? ###??###???# ##????????? | | ???????????????##????????#???????????###?????????? | | ?????????????????????????????????????????????????? | | ?????????????????????????????????????????????????? | | ?????????????????????????????????????????????????? | | ?????????????????????????????????????????????????? | | ?????????????????????????????????????????????????? | | ?????????????????????????????????????????????????? | | ?????????????????????????????????????????????????? | | ?????????????????????????????????????????????????? | | ?????????????????????????????????????????????????? | | ?????????????????????????????????????????????????? | | ?????????????????????????????????????????????????? | | ?????????????????????????????????????????????????? | | ?????????????????????????????????????????????????? | | ?????????????????????????????????????????????????? | | ?????????????????????????????????????????????????? | | | +----------------------------------------------------+ Best States ------------- Heat Dissipation 25 Energy Generation 10 Energy Capacity 250 Matter Stores 300 Matter Capacity 300 Sight Range 16 Terrain Scan Density 10 Armor Coverage 800 Evasion (%) 41 Recoil Reduction 2 Item Schematics ----------------- None Robot Schematics ------------------ None Fabricated ------------ Nothing Repaired ---------- Nothing Studied --------- None Alien Tech Used ----------------- None Achievements -------------- Art Critic Do Not Disturb Survival Of The Most Covered Challenges ------------ None Game ------ Seed ThermalResetCharge Manual? 0 Play Time 00:14:25 Cumulative 53.0 hours Start 2026.01.18 @ 13:40:40 End 2026.01.18 @ 13:55:02 Sessions 1 Manual Loads 0 Difficulty Rogue Special Mode None Game No. 33 Rogue 29 Adventurer 4 Explorer 0 Win Type - Total 1 Types 1/0/0/0/0/0/0/0/0/0 Lore% 31 Gallery% 34 Achievement% 27 Wizard Run 0 Options --------- Layout 1 ASCII 0 Keyboard 1 Movement Vi Keybinds 0 Fullscreen 0 Font 20/SmallcapsGlow Map View 50x35 Zoom Use 0% Tactical HUD 1 Map Filters NONE Filters NONE Steam 1 RUN: 41b33a70-7808-47e6-93a5-4657c9d3e5fd